fUSD/lending_fUSD_20240728
["ID","MTS","AMOUNT","RATE_DAILY","PERIOD"]
[333459923,1722148247850,-500.0,0.00010999,2]
[333459924,1722148247860,-500.0,0.00010999,2]
[333459925,1722148247869,-500.0,0.00010999,2]
[333459926,1722148247880,-500.0,0.00010999,2]
[333459927,1722148247889,-500.0,0.00010999,2]
[333459928,1722148247899,-504.31971566,0.00010999,2]
[333459929,1722148247908,-500.0,0.00010999,2]
[333459930,1722148247918,-500.0,0.00010999,2]
[333459931,1722148247927,-500.0,0.00010999,2]
[333459932,1722148247937,-500.0,0.00010999,2]
[333459933,1722148247946,-500.0,0.00010999,2]
[333459934,1722148247956,-509.83950351,0.00010999,2]
[333459935,1722148247965,-500.0,0.00010999,2]
[333459936,1722148247974,-500.0,0.00010999,2]
[333459937,1722148247984,-500.0,0.00010999,2]
[333459938,1722148247993,-500.0,0.00010999,2]
[333459939,1722148248003,-510.31504765,0.00010999,2]
[333459940,1722148248012,-500.0,0.00010999,2]
[333459941,1722148248022,-500.0,0.00010999,2]
[333459942,1722148248033,-500.0,0.00010999,2]
[333459943,1722148248044,-500.0,0.00010999,2]
[333459944,1722148248054,-500.0,0.00010999,2]
[333459945,1722148248063,-500.0,0.00010999,2]
[333459946,1722148248074,-511.42535511,0.00010999,2]
[333459947,1722148248084,-500.0,0.00010999,2]
[333459948,1722148248094,-500.0,0.00010999,2]
[333459949,1722148248103,-500.0,0.00010999,2]
[333459950,1722148248113,-500.0,0.00010999,2]
[333459951,1722148248123,-500.0,0.00010999,2]
[333459952,1722148248132,-500.0,0.00010999,2]
[333459953,1722148248142,-500.0,0.00010999,2]
[333459954,1722148248152,-473.92,0.00010999,2]
[333459955,1722148248162,-500.0,0.00010999,2]
[333459956,1722148248172,-500.0,0.00010999,2]
[333459957,1722148248182,-500.0,0.00010999,2]
[333459958,1722148248192,-500.0,0.00010999,2]
[333459959,1722148248205,-187.00863394,0.00010999,2]
[333459960,1722148248787,-312.99136606,0.00010999,2]
[333459961,1722148248798,-500.0,0.00010999,2]
[333459962,1722148248807,-500.0,0.00010999,2]
[333459963,1722148248817,-500.0,0.00010999,2]
[333459964,1722148248826,-500.0,0.00010999,2]
[333459965,1722148248836,-502.23366979,0.00010999,2]
[333459966,1722148248846,-500.0,0.00010999,2]
[333459967,1722148248856,-500.0,0.00010999,2]
[333459968,1722148248865,-500.0,0.00010999,2]
[333459969,1722148248878,-502.30653083,0.00010999,2]
[333459970,1722148248888,-500.0,0.00010999,2]
[333459971,1722148248898,-208.27725834,0.00010999,2]
[333460027,1722149432416,-747.16,8.219e-05,2]
[333460028,1722149432426,-250.0,9.987e-05,2]
[333460029,1722149432435,-300.0,9.998e-05,2]
[333460030,1722149432445,-4612.37188628,0.0001,2]
[333460031,1722149432456,-17283.70088635,0.0001,2]
[333460032,1722149432469,-2003.92722737,0.0001,2]
[333460033,1722149432479,-385.57,0.00010006,2]
[333460034,1722149432488,-614.43,0.00010032,2]
[333460035,1722149432498,-96.07277263,0.00010137,2]
[333460036,1722149432510,-69.80722737,0.00010137,2]
[333460037,1722149432520,-448.04345959,0.0001045,2]
[333460038,1722149432532,-3814.1003253,0.0001045,2]
[333460039,1722149432543,-668.28141107,0.0001045,2]
[333460040,1722149432554,-5069.57480404,0.0001045,2]
[333460041,1722149432564,-747.16,0.00010478,2]
[333460042,1722149432574,-949.56519596,0.00010779,2]
[333460043,1722149432589,-92.30472648,0.00010779,2]
[333460044,1722149432598,-499.99,0.00010779,2]
[333460045,1722149432608,-1007.07,0.00010779,2]
[333460046,1722149432618,-61.82125912,0.0001078,2]
[333460047,1722149432630,-132.54689818,0.0001078,2]
[333460048,1722149432640,-1150.46803582,0.000108,2]
[333460049,1722149432676,-811.06136418,0.000108,2]
[333460050,1722149432686,-1927.5656,0.00010889,2]
[333460051,1722149432696,-2128.25813191,0.00010898,2]
[333460052,1722149432775,-2407.636,0.00010898,2]
[333460070,1722149438531,-30.70336809,0.00010898,2]
[333460071,1722149438541,-346.04663191,0.00010899,2]
[333460076,1722149438768,-500.0,0.00010899,2]
[333460077,1722149438781,-338.215,0.00010899,2]
[333460078,1722149438797,-577.56055787,0.00010899,2]
[333460079,1722149438809,-2786.17481022,0.00010899,2]
[333460080,1722149438818,-6008.0,0.000109,2]
[333460081,1722149438828,-220.77,0.00010904,3]
[333460082,1722149438840,-200.0,0.00010959,2]
[333460083,1722149438850,-500.0,0.00010998,2]
[333460084,1722149438860,-509.96667923,0.00010998,2]
[333460085,1722149438871,-509.18948521,0.00010998,2]
[333460086,1722149438884,-500.0,0.00010998,2]
[333460087,1722149438894,-514.96589539,0.00010998,2]
[333460088,1722149438906,-500.0,0.00010998,2]
[333460089,1722149438921,-500.0,0.00010998,2]
[333460091,1722149438934,-1738.07,0.00010998,2]
[333460094,1722149438945,-612.18893393,0.00010998,2]
[333460096,1722149438955,-504.71791432,0.00010998,2]
[333460098,1722149438965,-500.0,0.00010998,2]
[333460100,1722149438976,-500.0,0.00010998,2]
[333460102,1722149438988,-875.52,0.00010998,2]
[333460104,1722149438999,-500.0,0.00010998,2]
[333460106,1722149439011,-395.27217867,0.00010998,2]
[333460108,1722149439025,-104.72782133,0.00010998,2]
[333460110,1722149439035,-500.0,0.00010998,2]
[333460112,1722149439046,-20.61765557,0.00010998,2]
[333460251,1722149440519,-479.38234443,0.00010998,2]
[333460254,1722149440529,-500.0,0.00010998,2]
[333460257,1722149440539,-374.91059557,0.00010998,2]
[333460260,1722149440551,-125.08940443,0.00010998,2]
[333460263,1722149440560,-500.0,0.00010998,2]
[333460266,1722149440570,-24.91059557,0.00010998,2]
[333460280,1722149440640,-361.50120128,0.00010998,2]
[333460282,1722149440650,-325.8054141,0.00010998,2]
[333460284,1722149440660,-500.0,0.00010998,2]
[333460286,1722149440669,-500.0,0.00010998,2]
[333460288,1722149440679,-500.0,0.00010998,2]
[333460290,1722149440688,-500.0,0.00010998,2]
[333460292,1722149440697,-500.0,0.00010998,2]
[333460294,1722149440707,-500.0,0.00010998,2]
[333460296,1722149440716,-500.0,0.00010998,2]
[333460298,1722149440726,-500.0,0.00010998,2]
[333460300,1722149440736,-500.0,0.00010998,2]
[333460301,1722149440745,-500.0,0.00010998,2]
[333460303,1722149440755,-500.0,0.00010998,2]
[333460305,1722149440764,-500.0,0.00010998,2]
[333460307,1722149440773,-306.52754727,0.00010998,2]
[333460309,1722149440783,-500.0,0.00010998,2]
[333460311,1722149440792,-500.0,0.00010998,2]
[333460313,1722149440802,-519.59,0.00010998,2]
[333460315,1722149440811,-500.0,0.00010998,2]
[333460317,1722149440820,-500.0,0.00010998,2]
[333460319,1722149440831,-500.0,0.00010998,2]
[333460321,1722149440842,-509.94288987,0.00010998,2]
[333460322,1722149440851,-500.0,0.00010998,2]
[333460324,1722149440860,-500.0,0.00010998,2]
[333460326,1722149440870,-588.76896847,0.00010998,2]
[333460328,1722149440881,-500.0,0.00010998,2]
[333460330,1722149440890,-500.0,0.00010998,2]
[333460332,1722149440900,-500.0,0.00010998,2]
[333460334,1722149440910,-500.0,0.00010998,2]
[333460336,1722149440920,-500.0,0.00010998,2]
[333460338,1722149440930,-500.0,0.00010998,2]
[333460340,1722149440940,-500.0,0.00010998,2]
[333460342,1722149440949,-500.0,0.00010998,2]
[333460344,1722149440959,-500.0,0.00010998,2]
[333460346,1722149440970,-500.0,0.00010998,2]
[333460348,1722149440979,-22863.51413571,0.00010998,2]
[333460350,1722149440991,-2025.26791969,0.00010998,2]
[333460352,1722149441003,-884.84365283,0.00010998,2]
[333460354,1722149441014,-548.62710039,0.00010998,2]
[333460357,1722149441030,-284.97781802,0.00010998,2]
[333460359,1722149441042,-19277.26965186,0.00010998,2]
[333460361,1722149441051,-300.0,0.00010998,2]
[333460363,1722149441060,-420.0,0.00010998,2]
[333460365,1722149441070,-10866.60016185,0.00010998,2]
[333460367,1722149441079,-291.72274166,0.00010999,2]
[333460369,1722149441089,-500.0,0.00010999,2]
[333460371,1722149441098,-500.0,0.00010999,2]
[333460373,1722149441107,-500.0,0.00010999,2]
[333460375,1722149441117,-509.78789704,0.00010999,2]
[333460376,1722149441127,-500.0,0.00010999,2]
[333460379,1722149441137,-500.0,0.00010999,2]
[333460380,1722149441146,-507.33560364,0.00010999,2]
[333460382,1722149441156,-500.0,0.00010999,2]
[333460384,1722149441165,-500.0,0.00010999,2]
[333460386,1722149441175,-500.0,0.00010999,2]
[333460388,1722149441185,-500.0,0.00010999,2]
[333460390,1722149441195,-500.0,0.00010999,2]
[333460392,1722149441204,-500.0,0.00010999,2]
[333460394,1722149441213,-512.38803833,0.00010999,2]
[333460396,1722149441222,-500.0,0.00010999,2]
[333460398,1722149441232,-500.0,0.00010999,2]
[333460399,1722149441242,-500.0,0.00010999,2]
[333460401,1722149441251,-558.17058021,0.00010999,2]
[333460403,1722149441260,-500.0,0.00010999,2]
[333460405,1722149441271,-500.0,0.00010999,2]
[333460407,1722149441281,-500.0,0.00010999,2]
[333460409,1722149441291,-605.61164853,0.00010999,2]
[333460411,1722149441302,-500.0,0.00010999,2]
[333460413,1722149441312,-500.0,0.00010999,2]
[333460415,1722149441322,-500.0,0.00010999,2]
[333460417,1722149441331,-500.0,0.00010999,2]
[333460419,1722149441341,-500.0,0.00010999,2]
[333460421,1722149441350,-500.0,0.00010999,2]
[333460423,1722149441359,-500.0,0.00010999,2]
[333460425,1722149441368,-507.4772366,0.00010999,2]
[333460427,1722149441377,-500.0,0.00010999,2]
[333460429,1722149441386,-500.0,0.00010999,2]
[333460431,1722149441396,-500.0,0.00010999,2]
[333460433,1722149441404,-500.0,0.00010999,2]
[333460435,1722149441416,-500.0,0.00010999,2]
[333460437,1722149441426,-501.77975269,0.00010999,2]
[333460439,1722149441436,-500.0,0.00010999,2]
[333460441,1722149441446,-500.0,0.00010999,2]
[333460443,1722149441455,-500.0,0.00010999,2]
[333460444,1722149441464,-500.0,0.00010999,2]
[333460446,1722149441472,-500.0,0.00010999,2]
[333460448,1722149441482,-504.4533484,0.00010999,2]
[333460450,1722149441491,-500.0,0.00010999,2]
[333460452,1722149441500,-500.0,0.00010999,2]
[333460454,1722149441509,-501.29771309,0.00010999,2]
[333460456,1722149441519,-500.0,0.00010999,2]
[333460458,1722149441528,-500.0,0.00010999,2]
[333460460,1722149441537,-500.0,0.00010999,2]
[333460462,1722149441547,-500.0,0.00010999,2]
[333460464,1722149441557,-500.0,0.00010999,2]
[333460466,1722149441567,-507.97811744,0.00010999,2]
[333460468,1722149441576,-500.0,0.00010999,2]
[333460470,1722149441586,-498.49722283,0.00010999,2]
[333460472,1722149441595,-177.57475576,0.00010999,2]
[333460474,1722149441605,-502.20383919,0.00010999,2]
[333460476,1722149441614,-501.78052862,0.00010999,2]
[333460478,1722149441623,-502.50617787,0.00010999,2]
[333460480,1722149441633,-500.0,0.00010999,2]
[333460482,1722149441642,-500.0,0.00010999,2]
[333460483,1722149441652,-500.0,0.00010999,2]
[333460485,1722149441664,-500.0,0.00010999,2]
[333460487,1722149441673,-500.0,0.00010999,2]
[333460489,1722149441683,-500.0,0.00010999,2]
[333460491,1722149441692,-500.0,0.00010999,2]
[333460493,1722149441701,-500.0,0.00010999,2]
[333460495,1722149441711,-500.0,0.00010999,2]
[333460497,1722149441721,-500.0,0.00010999,2]
[333460499,1722149441730,-500.0,0.00010999,2]
[333460501,1722149441739,-500.35312886,0.00010999,2]
[333460503,1722149441749,-500.0,0.00010999,2]
[333460505,1722149441758,-500.0,0.00010999,2]
[333460507,1722149441767,-498.91585321,0.00010999,2]
[333460509,1722149441777,-630.01422585,0.00010999,2]
[333460511,1722149441787,-500.0,0.00010999,2]
[333460512,1722149441796,-502.37994361,0.00010999,2]
[333460513,1722149441805,-500.0,0.00010999,2]
[333460514,1722149441815,-500.0,0.00010999,2]
[333460515,1722149441825,-232.88432197,0.00010999,2]
[333460516,1722149441835,-500.0,0.00010999,2]
[333460517,1722149441848,-500.0,0.00010999,2]
[333460518,1722149441857,-1738.07,0.00010999,2]
[333460519,1722149441867,-500.0,0.00010999,2]
[333460520,1722149441876,-1738.07,0.00010999,2]
[333460521,1722149441887,-500.0,0.00010999,2]
[333460522,1722149441897,-1738.07,0.00010999,2]
[333460523,1722149441910,-344.56600179,0.00010999,2]
[333460524,1722149441920,-1738.07,0.00010999,2]
[333460525,1722149441930,-1738.07,0.00010999,2]
[333460526,1722149441939,-1738.07,0.00010999,2]
[333460527,1722149441949,-1738.07,0.00010999,2]
[333460528,1722149441959,-1738.07,0.00010999,2]
[333460529,1722149441968,-1738.07,0.00010999,2]
[333460530,1722149441978,-1738.07,0.00010999,2]
[333460531,1722149441987,-1738.07,0.00010999,2]
[333460532,1722149441998,-1738.07,0.00010999,2]
[333460533,1722149442007,-1738.07,0.00010999,2]
[333460534,1722149442018,-1738.07,0.00010999,2]
[333460535,1722149442027,-1738.07,0.00010999,2]
[333460536,1722149442036,-1738.07,0.00010999,2]
[333460537,1722149442047,-1738.07,0.00010999,2]
[333460538,1722149442056,-1738.07,0.00010999,2]
[333460539,1722149442066,-1738.07,0.00010999,2]
[333460540,1722149442076,-1738.07,0.00010999,2]
[333460541,1722149442087,-1738.07,0.00010999,2]
[333460542,1722149442098,-1738.07,0.00010999,2]
[333460543,1722149442108,-1738.11318773,0.00010999,2]
[333460544,1722149442118,-500.0,0.00010999,2]
[333460545,1722149442128,-500.0,0.00010999,2]
[333460546,1722149442138,-429.1,0.00010999,2]
[333460547,1722149442148,-875.52,0.00010999,2]
[333460548,1722149442159,-875.52,0.00010999,2]
[333460549,1722149442168,-875.52,0.00010999,2]
[333460550,1722149442177,-875.52,0.00010999,2]
[333460551,1722149442187,-875.52,0.00010999,2]
[333460552,1722149442196,-812.33271325,0.00010999,2]
[333460553,1722149442212,-63.18728675,0.00010999,2]
[333460554,1722149442222,-875.52,0.00010999,2]
[333460555,1722149442231,-875.52,0.00010999,2]
[333460556,1722149442241,-875.52,0.00010999,2]
[333460557,1722149442250,-875.52,0.00010999,2]
[333460558,1722149442259,-875.52,0.00010999,2]
[333460559,1722149442269,-875.52,0.00010999,2]
[333460560,1722149442278,-875.52,0.00010999,2]
[333460561,1722149442287,-875.52,0.00010999,2]
[333460562,1722149442296,-875.52,0.00010999,2]
[333460563,1722149442305,-875.52,0.00010999,2]
[333460564,1722149442315,-875.52,0.00010999,2]
[333460565,1722149442324,-875.52,0.00010999,2]
[333460566,1722149442333,-875.52,0.00010999,2]
[333460567,1722149442343,-875.52,0.00010999,2]
[333460568,1722149442352,-875.52,0.00010999,2]
[333460569,1722149442362,-875.52,0.00010999,2]
[333460570,1722149442371,-875.5868,0.00010999,2]
[333460571,1722149442381,-500.0,0.00010999,2]
[333460572,1722149442390,-222.69597253,0.00010999,2]
[333460573,1722149442400,-181.61391252,0.00010999,2]
[333460574,1722149442413,-500.0,0.00010999,2]
[333460575,1722149442423,-500.0,0.00010999,2]
[333460576,1722149442433,-500.0,0.00010999,2]
[333460577,1722149442442,-500.0,0.00010999,2]
[333460578,1722149442451,-500.0,0.00010999,2]
[333460579,1722149442460,-543.79575333,0.00010999,2]
[333460580,1722149442471,-1049.45031214,0.00010999,2]
[333460581,1722149442481,-412.65604189,0.00010999,2]
[333460582,1722149442490,-500.0,0.00010999,2]
[333460583,1722149442500,-500.0,0.00010999,2]
[333460584,1722149442510,-500.0,0.00010999,2]
[333460585,1722149442519,-500.0,0.00010999,2]
[333460586,1722149442531,-649.08686762,0.00010999,2]
[333460587,1722149442540,-300.41633906,0.00010999,2]
[333460588,1722149442550,-500.0,0.00010999,2]
[333460589,1722149442560,-500.0,0.00010999,2]
[333460590,1722149442569,-500.0,0.00010999,2]
[333460591,1722149442579,-500.0,0.00010999,2]
[333460592,1722149442588,-437.43436603,0.00010999,2]
[333460593,1722149442598,-449.02476873,0.00010999,2]
[333460594,1722149442607,-160.15475012,0.00010999,2]
[333460595,1722149442616,-500.0,0.00010999,2]
[333460596,1722149442626,-500.0,0.00010999,2]
[333460597,1722149442635,-500.0,0.00010999,2]
[333460598,1722149442645,-500.0,0.00010999,2]
[333460599,1722149442655,-500.0,0.00010999,2]
[333460600,1722149442665,-531.15325862,0.00010999,2]
[333460601,1722149442675,-500.0,0.00010999,2]
[333460602,1722149442684,-496.31407109,0.00010999,2]
[333460603,1722149442694,-529.07934344,0.00010999,2]
[333460604,1722149442703,-500.0,0.00010999,2]
[333460605,1722149442712,-500.0,0.00010999,2]
[333460606,1722149442722,-500.0,0.00010999,2]
[333460607,1722149442731,-500.0,0.00010999,2]
[333460608,1722149442741,-500.0,0.00010999,2]
[333460609,1722149442750,-500.0,0.00010999,2]
[333460610,1722149442760,-500.0,0.00010999,2]
[333460611,1722149442770,-500.0,0.00010999,2]
[333460612,1722149442779,-500.0,0.00010999,2]
[333460613,1722149442789,-500.0,0.00010999,2]
[333460614,1722149442798,-611.25,0.00010999,2]
[333460615,1722149442807,-213.6,0.00010999,2]
[333460616,1722149442817,-500.0,0.00010999,2]
[333460617,1722149442826,-521.87999999,0.00010999,2]
[333460618,1722149442838,-500.0,0.00010999,2]
[333460619,1722149442850,-500.0,0.00010999,2]
[333460620,1722149442860,-500.0,0.00010999,2]
[333460621,1722149442869,-355.21,0.00010999,2]
[333460622,1722149442879,-500.0,0.00010999,2]
[333460623,1722149442889,-500.0,0.00010999,2]
[333460624,1722149442899,-183.83429672,0.00010999,2]
[333460625,1722149442909,-2000.0,0.00010999,2]
[333460626,1722149442920,-500.0,0.00010999,2]
[333460627,1722149442930,-483.67142439,0.00010999,2]
[333460628,1722149442939,-200.0,0.00010999,2]
[333460629,1722149442949,-500.0,0.00010999,2]
[333460630,1722149442958,-319.23756309,0.00010999,2]
[333460631,1722149442968,-5816.31,0.00010999,2]
[333460632,1722149442977,-500.0,0.00010999,2]
[333460633,1722149442987,-500.0,0.00010999,2]
[333460634,1722149442997,-500.0,0.00010999,2]
[333460635,1722149443007,-507.62964556,0.00010999,2]
[333460636,1722149443017,-500.0,0.00010999,2]
[333460637,1722149443026,-500.0,0.00010999,2]
[333460638,1722149443036,-508.18533963,0.00010999,2]
[333460639,1722149443045,-2000.0,0.00010999,2]
[333460640,1722149443055,-200.0,0.00010999,2]
[333460641,1722149443065,-153.020433,0.00010999,2]
[333460642,1722149443074,-151.0,0.00010999,2]
[333460643,1722149443084,-161.991673,0.00010999,2]
[333460644,1722149443093,-159.950716,0.00010999,2]
[333460645,1722149443102,-159.950716,0.00010999,2]
[333460646,1722149443112,-2000.0,0.00010999,2]
[333460647,1722149443122,-200.0,0.00010999,2]
[333460648,1722149443132,-3000.0,0.00010999,2]
[333460649,1722149443143,-20367.51089698,0.00010999,2]
[333460650,1722149443153,-500.0,0.00010999,2]
[333460651,1722149443163,-500.0,0.00010999,2]
[333460652,1722149443173,-532.23020545,0.00010999,2]
[333460653,1722149443182,-351.10339928,0.00010999,2]
[333460655,1722149443192,-500.0,0.00010999,2]
[333460657,1722149443202,-500.0,0.00010999,2]
[333460659,1722149443211,-541.12,0.00010999,2]
[333460661,1722149443221,-500.0,0.00010999,2]
[333460663,1722149443230,-500.0,0.00010999,2]
[333460665,1722149443240,-500.0,0.00010999,2]
[333460666,1722149443249,-500.0,0.00010999,2]
[333460668,1722149443259,-477.46,0.00010999,2]
[333460672,1722149443268,-500.0,0.00010999,2]
[333460675,1722149443277,-500.0,0.00010999,2]
[333460679,1722149443287,-500.0,0.00010999,2]
[333460681,1722149443297,-501.58473163,0.00010999,2]
[333460684,1722149443307,-500.0,0.00010999,2]
[333460687,1722149443316,-500.0,0.00010999,2]
[333460689,1722149443326,-500.0,0.00010999,2]
[333460692,1722149443336,-500.0,0.00010999,2]
[333460695,1722149443346,-500.0,0.00010999,2]
[333460697,1722149443356,-500.0,0.00010999,2]
[333460700,1722149443368,-500.0,0.00010999,2]
[333460702,1722149443377,-579.840001,0.00010999,2]
[333460704,1722149443387,-500.0,0.00010999,2]
[333460706,1722149443397,-300.0,0.00010999,2]
[333460708,1722149443407,-300.0,0.00010999,2]
[333460710,1722149443417,-300.0,0.00010999,2]
[333460712,1722149443427,-302.57050335,0.00010999,2]
[333460713,1722149443437,-2000.0,0.00010999,2]
[333460714,1722149443447,-152.95188605,0.00010999,2]
[333460715,1722149443456,-200.0,0.00010999,2]
[333460716,1722149443466,-500.0,0.00010999,2]
[333460717,1722149443475,-500.0,0.00010999,2]
[333460718,1722149443484,-403.12321561,0.00010999,2]
[333460719,1722149443495,-72293.48977846,0.00011,2]
[333460720,1722149443508,-80211.83959667,0.00011,2]
[333460722,1722149443518,-509.397,0.00011,2]
[333460723,1722149443528,-556.722,0.00011,2]
[333460724,1722149443538,-153.209,0.00011,2]
[333460725,1722149443547,-2401.369,0.00011,2]
[333460726,1722149443557,-3308.751,0.00011,2]
[333460727,1722149443566,-2006.672,0.00011,2]
[333460728,1722149443576,-905.381,0.00011,2]
[333460729,1722149443586,-150.0,0.00011,2]
[333460730,1722149443596,-150.0,0.00011,2]
[333460731,1722149443605,-500.0,0.00011,2]
[333460732,1722149443616,-501.0,0.00011,2]
[333460733,1722149443625,-500.0,0.00011,2]
[333460734,1722149443635,-234468.65046777,0.00011,2]
[333460735,1722149443647,-3537.73874138,0.00011,2]
[333460736,1722149443666,-1275.2531778,0.00011,2]
[333460737,1722149443678,-347.833572,0.00011,2]
[333460738,1722149443689,-730.55933782,0.00011,2]
[333460739,1722149443840,-500.0,0.00011,2]
[333460740,1722149443853,-337.27249606,0.00011,2]
[333460741,1722149443865,-1728.91551635,0.00011,2]
[333460742,1722149443878,-537.16417105,0.00011,2]
[333460743,1722149443891,-801.13872392,0.00011,2]
[333460744,1722149443903,-2925.0,0.00011,2]
[333460745,1722149443916,-56128.64415127,0.00011,2]
[333460746,1722149443927,-2759.5004898,0.00011,2]
[333460747,1722149443938,-5864.05419378,0.00011,2]
[333460748,1722149443950,-433.95368452,0.00011,2]
[333460749,1722149443960,-760.14437772,0.00011,2]
[333460750,1722149443971,-4769.26480063,0.00011,2]
[333460751,1722149443982,-2279.0,0.00011,2]
[333460752,1722149443993,-1881.76573124,0.00011,2]
[333460753,1722149444006,-3345.55,0.00011,2]
[333460754,1722149444016,-1301.76155388,0.00011,2]
[333460755,1722149444027,-1888.0000005,0.00011,2]
[333460756,1722149444042,-500.0,0.00011,2]
[333460757,1722149444972,-1054.05073096,0.00011,2]
[333460758,1722149444986,-1352.44,0.00011,2]
[333460759,1722149446571,-10000.0,0.0001045,2]
[333460760,1722149446581,-43536.64750543,0.00011,2]
[333460782,1722149447244,-3075.0,0.00011,2]
[333460784,1722149447255,-519.94092033,0.00011,2]
[333460786,1722149447267,-492.79536796,0.00011,2]
[333460788,1722149447278,-26977.16239601,0.00011,2]
[333460790,1722149447290,-584.82021014,0.00011,2]
[333460792,1722149447301,-29000.0,0.00011,2]
[333460795,1722149447314,-1647.40367444,0.00011,2]
[333460797,1722149447325,-4776.45311596,0.00011,2]
[333460799,1722149447337,-9409.88840403,0.00011,2]
[333460801,1722149447348,-1405.51915643,0.00011,2]
[333460802,1722149447359,-18687.90820847,0.00011,2]
[333460803,1722149447370,-592.714,0.00011,2]
[333460804,1722149447381,-456.95008335,0.00011,2]
[333460805,1722149447393,-585.22668101,0.00011,2]
[333460806,1722149447404,-1346.51356479,0.00011,2]
[333460807,1722149447416,-929.49487417,0.00011,2]
[333460808,1722149447427,-310.0765343,0.00011,2]
[333460809,1722149447438,-852.18109769,0.00011,2]
[333460810,1722149447450,-305.0,0.00011,2]
[333460811,1722149447461,-1020.64322921,0.00011,2]
[333460812,1722149447472,-442.00189353,0.00011,2]
[333460813,1722149447483,-451.23409272,0.00011,2]
[333460815,1722149447494,-3806.86725448,0.00011,2]
[333460817,1722149447505,-2251.39048209,0.00011,2]
[333460819,1722149447516,-400.57,0.00011,2]
[333460822,1722149447534,-562.5,0.00011,2]
[333460824,1722149447545,-2071.03725159,0.00011,2]
[333460826,1722149447556,-768.0,0.00011,2]
[333460828,1722149447568,-27493.91517875,0.00011,2]
[333460830,1722149447579,-57189.2192255,0.00011,2]
[333460833,1722149447590,-3823.05,0.00011,2]
[333460853,1722149794477,150.0,0.0002,90]
[333460877,1722150631578,-192.28,7.541e-05,2]
[333460878,1722150631587,-802.30355537,8.219e-05,2]
[333460879,1722150631596,-341.64744212,8.219e-05,2]
[333460880,1722150631607,-401.44091038,8.219e-05,2]
[333460881,1722150631648,-25.0516475,8.219e-05,2]
[333460882,1722150631657,-802.30355537,8.816e-05,2]
[333460883,1722150631667,-802.30355537,9.412e-05,2]
[333460884,1722150631676,-903.16932328,9.412e-05,2]
[333460885,1722150631687,-2679.86377672,9.412e-05,2]
[333460886,1722150631696,-398.69554373,9.417e-05,2]
[333460887,1722150631711,-23501.30445627,9.417e-05,2]
[333460888,1722150631720,-250.0,9.431e-05,2]
[333460889,1722150631729,-267.64,9.446e-05,2]
[333460890,1722150631738,-1058.72,9.474e-05,2]
[333460891,1722150631747,-797.34,9.508e-05,2]
[333460892,1722150631757,-300.0,9.511e-05,2]
[333460893,1722150631766,-300.0,9.511e-05,2]
[333460894,1722150631775,-1747.98,9.512e-05,2]
[333460895,1722150631785,-9340.66,9.543e-05,2]
[333460896,1722150631795,-499.99,9.67e-05,2]
[333460897,1722150631804,-299.99,9.67e-05,2]
[333460898,1722150631814,-308.46,9.7e-05,2]
[333460899,1722150631823,-162.34,9.784e-05,2]
[333460900,1722150631832,-499.99,9.887e-05,2]
[333460901,1722150631842,-164.34,9.911e-05,2]
[333460902,1722150631852,-164.34,9.935e-05,2]
[333460903,1722150631862,-164.34,9.96e-05,2]